[Event "Titled Tuesday Blitz November 14 Early 2023"]
[White "Herman, Matthew"]
[Black "KatakuriDono"]
[WhiteFideId "2028964"]
[WhiteElo "2522"]
[BlackElo "2367"]
[Result "1-0"]
[Round "3"]
[TimeControl "180+1"]
[Date "2023.11.14"]
[WhiteClock "0:00:30"]
[BlackClock "0:01:13"]
[Board "174"]

1. e4 {[%clk 0:03:00]}  e5 {[%clk 0:03:00]} 2. Nf3 {[%clk 0:03:00]}  Nc6 {[%clk 0:03:00]} 3. Bb5 {[%clk 0:03:00]}  a6 {[%clk 0:03:01]} 4. Ba4 {[%clk 0:03:00]}  Nf6 {[%clk 0:03:01]} 5. O-O {[%clk 0:03:01]}  Be7 {[%clk 0:03:01]} 6. Re1 {[%clk 0:03:01]}  b5 {[%clk 0:02:59]} 7. Bb3 {[%clk 0:03:02]}  d6 {[%clk 0:03:00]} 8. c3 {[%clk 0:03:02]}  O-O {[%clk 0:03:00]} 9. h3 {[%clk 0:03:03]}  Na5 {[%clk 0:03:00]} 10. Bc2 {[%clk 0:03:03]}  c5 {[%clk 0:03:01]} 11. d4 {[%clk 0:03:04]}  Nd7 {[%clk 0:03:00]} 12. d5 {[%clk 0:03:03]}  c4 {[%clk 0:02:58]} 13. b4 {[%clk 0:03:03]}  Nb7 {[%clk 0:02:57]} 14. a4 {[%clk 0:03:03]}  bxa4 {[%clk 0:02:45]} 15. Na3 {[%clk 0:02:42]}  Nb6 {[%clk 0:02:40]} 16. Be3 {[%clk 0:02:33]}  a5 {[%clk 0:02:33]} 17. Nd2 {[%clk 0:02:12]}  axb4 {[%clk 0:02:29]} 18. cxb4 {[%clk 0:02:12]}  c3 {[%clk 0:02:24]} 19. Ndc4 {[%clk 0:02:12]}  Nxc4 {[%clk 0:02:20]} 20. Nxc4 {[%clk 0:02:13]}  Bd7 {[%clk 0:02:16]} 21. Nb6 {[%clk 0:01:52]}  Rb8 {[%clk 0:02:15]} 22. Bxa4 {[%clk 0:01:24]}  Bxa4 {[%clk 0:02:12]} 23. Qxa4 {[%clk 0:01:25]}  Re8 {[%clk 0:01:52]} 24. Qc6 {[%clk 0:01:02]}  Bg5 {[%clk 0:01:36]} 25. Ra7 {[%clk 0:00:46]}  Bxe3 {[%clk 0:01:33]} 26. Rxe3 {[%clk 0:00:47]}  Qg5 {[%clk 0:01:15]} 27. Rxb7 {[%clk 0:00:38]}  Rbd8 {[%clk 0:01:13]} 28. Qxc3 {[%clk 0:00:30]} 1-0


[Site "https://www.chess.com"]

[Event "Titled Tuesday Blitz November 14 Early 2023"]
[White "Jarocka, Liwia"]
[Black "a-z30"]
[WhiteFideId "21807558"]
[WhiteElo "2351"]
[BlackElo "2494"]
[Result "1/2-1/2"]
[Round "3"]
[TimeControl "180+1"]
[Date "2023.11.14"]
[WhiteClock "0:00:05"]
[BlackClock "0:00:03"]
[Board "175"]

1. e4 {[%clk 0:03:00]}  d6 {[%clk 0:02:59]} 2. d4 {[%clk 0:03:00]}  Nf6 {[%clk 0:03:00]} 3. Nc3 {[%clk 0:02:59]}  g6 {[%clk 0:03:01]} 4. f4 {[%clk 0:02:58]}  Bg7 {[%clk 0:03:01]} 5. Nf3 {[%clk 0:02:58]}  O-O {[%clk 0:03:02]} 6. Bd3 {[%clk 0:02:57]}  Nc6 {[%clk 0:03:02]} 7. O-O {[%clk 0:02:57]}  e5 {[%clk 0:03:02]} 8. d5 {[%clk 0:02:56]}  Ne7 {[%clk 0:02:55]} 9. fxe5 {[%clk 0:02:41]}  dxe5 {[%clk 0:02:54]} 10. Kh1 {[%clk 0:02:20]}  c6 {[%clk 0:02:45]} 11. dxc6 {[%clk 0:02:00]}  Nxc6 {[%clk 0:02:45]} 12. Bg5 {[%clk 0:02:00]}  h6 {[%clk 0:02:45]} 13. Bh4 {[%clk 0:02:01]}  g5 {[%clk 0:02:36]} 14. Bf2 {[%clk 0:02:00]}  Qc7 {[%clk 0:02:00]} 15. Nd5 {[%clk 0:01:44]}  Nxd5 {[%clk 0:01:52]} 16. exd5 {[%clk 0:01:45]}  Nb4 {[%clk 0:01:38]} 17. c4 {[%clk 0:01:45]}  Nxd3 {[%clk 0:01:36]} 18. Qxd3 {[%clk 0:01:46]}  f5 {[%clk 0:01:35]} 19. Qc2 {[%clk 0:01:43]}  f4 {[%clk 0:01:25]} 20. c5 {[%clk 0:01:38]}  Bf5 {[%clk 0:01:24]} 21. Qc4 {[%clk 0:01:38]}  Qf7 {[%clk 0:01:12]} 22. Rfe1 {[%clk 0:01:32]}  Rfe8 {[%clk 0:01:11]} 23. Rad1 {[%clk 0:01:26]}  Rad8 {[%clk 0:01:11]} 24. b4 {[%clk 0:01:00]}  e4 {[%clk 0:01:10]} 25. Nd4 {[%clk 0:01:01]}  Bxd4 {[%clk 0:01:09]} 26. Rxd4 {[%clk 0:00:48]}  e3 {[%clk 0:01:09]} 27. Bg1 {[%clk 0:00:48]}  Re5 {[%clk 0:01:00]} 28. d6 {[%clk 0:00:47]}  Qxc4 {[%clk 0:00:54]} 29. Rxc4 {[%clk 0:00:48]}  Rd5 {[%clk 0:00:54]} 30. Rc3 {[%clk 0:00:45]}  Rd2 {[%clk 0:00:52]} 31. a3 {[%clk 0:00:44]}  Be4 {[%clk 0:00:52]} 32. Bxe3 {[%clk 0:00:44]}  fxe3 {[%clk 0:00:38]} 33. Rcxe3 {[%clk 0:00:42]}  Bxg2+ {[%clk 0:00:37]} 34. Kg1 {[%clk 0:00:42]}  Bc6 {[%clk 0:00:37]} 35. Rg3 {[%clk 0:00:38]}  Rf8 {[%clk 0:00:36]} 36. h4 {[%clk 0:00:36]}  Rff2 {[%clk 0:00:35]} 37. hxg5 {[%clk 0:00:34]}  Rg2+ {[%clk 0:00:34]} 38. Rxg2 {[%clk 0:00:35]}  Rxg2+ {[%clk 0:00:35]} 39. Kf1 {[%clk 0:00:36]}  Rxg5 {[%clk 0:00:31]} 40. Re7 {[%clk 0:00:36]}  Rd5 {[%clk 0:00:29]} 41. Kf2 {[%clk 0:00:32]}  a6 {[%clk 0:00:29]} 42. Kg3 {[%clk 0:00:32]}  Rg5+ {[%clk 0:00:27]} 43. Kh3 {[%clk 0:00:32]}  Rg7 {[%clk 0:00:28]} 44. Re5 {[%clk 0:00:30]}  Kf7 {[%clk 0:00:25]} 45. Kh4 {[%clk 0:00:30]}  Kf6 {[%clk 0:00:24]} 46. Re3 {[%clk 0:00:30]}  Rg5 {[%clk 0:00:22]} 47. Re2 {[%clk 0:00:29]}  Rd5 {[%clk 0:00:20]} 48. Rf2+ {[%clk 0:00:29]}  Kg6 {[%clk 0:00:20]} 49. Re2 {[%clk 0:00:28]}  Rd4+ {[%clk 0:00:20]} 50. Kg3 {[%clk 0:00:28]}  Kf5 {[%clk 0:00:20]} 51. Rf2+ {[%clk 0:00:28]}  Kg5 {[%clk 0:00:19]} 52. Rf7 {[%clk 0:00:28]}  h5 {[%clk 0:00:19]} 53. Rg7+ {[%clk 0:00:28]}  Kf6 {[%clk 0:00:19]} 54. Rc7 {[%clk 0:00:28]}  Kg6 {[%clk 0:00:18]} 55. a4 {[%clk 0:00:25]}  h4+ {[%clk 0:00:18]} 56. Kh2 {[%clk 0:00:25]}  Kg5 {[%clk 0:00:18]} 57. b5 {[%clk 0:00:25]}  axb5 {[%clk 0:00:17]} 58. axb5 {[%clk 0:00:26]}  Bxb5 {[%clk 0:00:16]} 59. Rxb7 {[%clk 0:00:25]}  Bd3 {[%clk 0:00:13]} 60. Rg7+ {[%clk 0:00:25]}  Kf4 {[%clk 0:00:12]} 61. d7 {[%clk 0:00:24]}  Bf5 {[%clk 0:00:11]} 62. c6 {[%clk 0:00:24]}  Rd2+ {[%clk 0:00:12]} 63. Rg2 {[%clk 0:00:22]}  Rd6 {[%clk 0:00:10]} 64. Rf2+ {[%clk 0:00:20]}  Kg5 {[%clk 0:00:09]} 65. Rxf5+ {[%clk 0:00:20]}  Kxf5 {[%clk 0:00:08]} 66. c7 {[%clk 0:00:21]}  Rxd7 {[%clk 0:00:07]} 67. c8=Q {[%clk 0:00:22]}  Ke6 {[%clk 0:00:07]} 68. Kh3 {[%clk 0:00:22]}  Kd6 {[%clk 0:00:07]} 69. Kxh4 {[%clk 0:00:22]}  Rc7 {[%clk 0:00:08]} 70. Qd8+ {[%clk 0:00:22]}  Kc6 {[%clk 0:00:08]} 71. Kg4 {[%clk 0:00:22]}  Rd7 {[%clk 0:00:09]} 72. Qc8+ {[%clk 0:00:22]}  Rc7 {[%clk 0:00:09]} 73. Qe6+ {[%clk 0:00:23]}  Kc5 {[%clk 0:00:08]} 74. Kf3 {[%clk 0:00:23]}  Rc6 {[%clk 0:00:09]} 75. Qe5+ {[%clk 0:00:22]}  Kb6 {[%clk 0:00:10]} 76. Ke4 {[%clk 0:00:22]}  Rc5 {[%clk 0:00:11]} 77. Qd6+ {[%clk 0:00:22]}  Rc6 {[%clk 0:00:12]} 78. Qb4+ {[%clk 0:00:22]}  Kc7 {[%clk 0:00:11]} 79. Kd5 {[%clk 0:00:23]}  Rb6 {[%clk 0:00:12]} 80. Qc5+ {[%clk 0:00:22]}  Kb7 {[%clk 0:00:13]} 81. Qe7+ {[%clk 0:00:22]}  Ka6 {[%clk 0:00:13]} 82. Qc7 {[%clk 0:00:22]}  Rb7 {[%clk 0:00:12]} 83. Qc8 {[%clk 0:00:22]}  Kb6 {[%clk 0:00:11]} 84. Kd6 {[%clk 0:00:19]}  Ka7 {[%clk 0:00:10]} 85. Kc6 {[%clk 0:00:16]}  Rb6+ {[%clk 0:00:10]} 86. Kc5 {[%clk 0:00:16]}  Rb8 {[%clk 0:00:08]} 87. Qd7+ {[%clk 0:00:12]}  Rb7 {[%clk 0:00:08]} 88. Qa4+ {[%clk 0:00:12]}  Kb8 {[%clk 0:00:08]} 89. Kc6 {[%clk 0:00:10]}  Rc7+ {[%clk 0:00:09]} 90. Kd6 {[%clk 0:00:11]}  Rb7 {[%clk 0:00:08]} 91. Qa6 {[%clk 0:00:08]}  Rb4 {[%clk 0:00:07]} 92. Qa5 {[%clk 0:00:08]}  Rb7 {[%clk 0:00:07]} 93. Qd8+ {[%clk 0:00:07]}  Ka7 {[%clk 0:00:06]} 94. Kc6 {[%clk 0:00:08]}  Rb3 {[%clk 0:00:03]} 95. Qc7+ {[%clk 0:00:08]}  Ka6 {[%clk 0:00:02]} 96. Qc8+ {[%clk 0:00:08]}  Ka7 {[%clk 0:00:02]} 97. Qd7+ {[%clk 0:00:08]}  Ka6 {[%clk 0:00:02]} 98. Qc8+ {[%clk 0:00:05]}  Ka7 {[%clk 0:00:01]} 99. Qg4 {[%clk 0:00:03]}  Rb6+ {[%clk 0:00:01]} 100. Kc7 {[%clk 0:00:03]}  Rb7+ {[%clk 0:00:01]} 101. Kd6 {[%clk 0:00:03]}  Rb6+ {[%clk 0:00:02]} 102. Kc5 {[%clk 0:00:04]}  Rb7 {[%clk 0:00:02]} 103. Qa4+ {[%clk 0:00:04]}  Kb8 {[%clk 0:00:02]} 104. Qe8+ {[%clk 0:00:04]}  Ka7 {[%clk 0:00:02]} 105. Qe3 {[%clk 0:00:05]}  Rc7+ {[%clk 0:00:02]} 106. Kd6+ {[%clk 0:00:05]}  Kb8 {[%clk 0:00:03]} 107. Qb6+ {[%clk 0:00:05]}  Ka8 {[%clk 0:00:03]} 108. Qa5+ {[%clk 0:00:03]}  Ra7 {[%clk 0:00:03]} 109. Qd8+ {[%clk 0:00:03]}  Kb7 {[%clk 0:00:03]} 110. Qd7+ {[%clk 0:00:03]}  Ka6 {[%clk 0:00:04]} 111. Qc6+ {[%clk 0:00:03]}  Ka5 {[%clk 0:00:04]} 112. Qc5+ {[%clk 0:00:04]}  Ka6 {[%clk 0:00:04]} 113. Kc6 {[%clk 0:00:05]}  Rc7+ {[%clk 0:00:03]} 114. Kxc7 {[%clk 0:00:05]} 1/2-1/2


[Site "https://www.chess.com"]

[Event "Titled Tuesday Blitz November 14 Early 2023"]
[White "Manukyan, Sargis V."]
[Black "Zivic, Dragan"]
[WhiteFideId "13303465"]
[BlackFideId "904740"]
[WhiteElo "2474"]
[BlackElo "2324"]
[Result "1/2-1/2"]
[Round "3"]
[TimeControl "180+1"]
[Date "2023.11.14"]
[WhiteClock "0:00:25"]
[BlackClock "0:00:19"]
[Board "177"]

1. d4 {[%clk 0:02:42]}  Nf6 {[%clk 0:02:57]} 2. Nc3 {[%clk 0:02:41]}  d5 {[%clk 0:02:54]} 3. Bf4 {[%clk 0:02:36]}  c5 {[%clk 0:02:53]} 4. e3 {[%clk 0:02:35]}  a6 {[%clk 0:02:51]} 5. Nf3 {[%clk 0:02:34]}  Nc6 {[%clk 0:02:49]} 6. dxc5 {[%clk 0:02:33]}  Bg4 {[%clk 0:02:46]} 7. Be2 {[%clk 0:02:26]}  Bxf3 {[%clk 0:02:43]} 8. Bxf3 {[%clk 0:02:25]}  e6 {[%clk 0:02:26]} 9. Na4 {[%clk 0:02:22]}  Nd7 {[%clk 0:02:25]} 10. c4 {[%clk 0:02:02]}  Qa5+ {[%clk 0:02:16]} 11. Ke2 {[%clk 0:01:56]}  dxc4 {[%clk 0:02:08]} 12. Bxc6 {[%clk 0:01:26]}  bxc6 {[%clk 0:02:05]} 13. Bd6 {[%clk 0:01:27]}  O-O-O {[%clk 0:01:40]} 14. b4 {[%clk 0:01:15]}  cxb3 {[%clk 0:01:24]} 15. axb3 {[%clk 0:01:03]}  Qb5+ {[%clk 0:01:21]} 16. Kf3 {[%clk 0:00:59]}  Nxc5 {[%clk 0:01:20]} 17. Nxc5 {[%clk 0:00:36]}  Rxd6 {[%clk 0:01:13]} 18. Qc2 {[%clk 0:00:36]}  Rd5 {[%clk 0:01:10]} 19. b4 {[%clk 0:00:33]}  Bxc5 {[%clk 0:01:05]} 20. bxc5 {[%clk 0:00:32]}  Rxc5 {[%clk 0:01:04]} 21. Qe4 {[%clk 0:00:27]}  Rf5+ {[%clk 0:01:00]} 22. Kg3 {[%clk 0:00:27]}  Rg5+ {[%clk 0:01:00]} 23. Kf3 {[%clk 0:00:26]}  Rf5+ {[%clk 0:00:50]} 24. Kg3 {[%clk 0:00:25]}  Rg5+ {[%clk 0:00:23]} 25. Kh3 {[%clk 0:00:24]}  Rh5+ {[%clk 0:00:19]} 26. Kg3 {[%clk 0:00:25]}  Rg5+ {[%clk 0:00:19]} 1/2-1/2


[Site "https://www.chess.com"]

[Event "Titled Tuesday Blitz November 14 Early 2023"]
[White "lagunanivaria"]
[Black "Cardozo Munar, Carlos Eduardo"]
[BlackFideId "4409477"]
[WhiteElo "2472"]
[BlackElo "2272"]
[Result "1/2-1/2"]
[Round "3"]
[TimeControl "180+1"]
[Date "2023.11.14"]
[WhiteClock "0:00:11"]
[BlackClock "0:00:15"]
[Board "178"]

1. e4 {[%clk 0:03:00]}  e6 {[%clk 0:02:59]} 2. d4 {[%clk 0:02:58]}  d5 {[%clk 0:02:58]} 3. exd5 {[%clk 0:02:54]}  exd5 {[%clk 0:02:58]} 4. Nf3 {[%clk 0:02:54]}  Bd6 {[%clk 0:02:57]} 5. Bd3 {[%clk 0:02:54]}  Ne7 {[%clk 0:02:56]} 6. O-O {[%clk 0:02:54]}  O-O {[%clk 0:02:56]} 7. Bg5 {[%clk 0:02:52]}  Nbc6 {[%clk 0:02:55]} 8. h3 {[%clk 0:02:51]}  f6 {[%clk 0:02:55]} 9. Be3 {[%clk 0:02:49]}  Bf5 {[%clk 0:02:55]} 10. c3 {[%clk 0:02:48]}  Qd7 {[%clk 0:02:44]} 11. Re1 {[%clk 0:02:39]}  a6 {[%clk 0:02:44]} 12. Na3 {[%clk 0:02:37]}  Rae8 {[%clk 0:02:42]} 13. Nc2 {[%clk 0:02:36]}  Ng6 {[%clk 0:02:24]} 14. b4 {[%clk 0:02:26]}  Nf4 {[%clk 0:02:02]} 15. Bxf4 {[%clk 0:02:25]}  Bxf4 {[%clk 0:02:03]} 16. a4 {[%clk 0:02:16]}  Re4 {[%clk 0:01:32]} 17. Nh4 {[%clk 0:01:51]}  Rxe1+ {[%clk 0:01:24]} 18. Nxe1 {[%clk 0:01:52]}  Bxh3 {[%clk 0:01:13]} 19. Qf3 {[%clk 0:00:32]}  Bd2 {[%clk 0:00:52]} 20. gxh3 {[%clk 0:00:25]}  Bxc3 {[%clk 0:00:45]} 21. Bxh7+ {[%clk 0:00:22]}  Kxh7 {[%clk 0:00:46]} 22. Qxc3 {[%clk 0:00:21]}  Re8 {[%clk 0:00:42]} 23. Neg2 {[%clk 0:00:20]}  Re4 {[%clk 0:00:40]} 24. Re1 {[%clk 0:00:17]}  Nxd4 {[%clk 0:00:32]} 25. Qd3 {[%clk 0:00:17]}  f5 {[%clk 0:00:23]} 26. Rxe4 {[%clk 0:00:15]}  dxe4 {[%clk 0:00:23]} 27. Qd2 {[%clk 0:00:15]}  b6 {[%clk 0:00:16]} 28. Ne3 {[%clk 0:00:11]}  c5 {[%clk 0:00:15]} 29. bxc5 {[%clk 0:00:10]}  bxc5 {[%clk 0:00:16]} 30. Nexf5 {[%clk 0:00:10]}  Qxf5 {[%clk 0:00:12]} 31. Nxf5 {[%clk 0:00:09]}  Nf3+ {[%clk 0:00:12]} 32. Kf1 {[%clk 0:00:08]}  Nxd2+ {[%clk 0:00:13]} 33. Ke2 {[%clk 0:00:07]}  Nc4 {[%clk 0:00:13]} 34. Ng3 {[%clk 0:00:06]}  Nd6 {[%clk 0:00:13]} 35. Ke3 {[%clk 0:00:06]}  c4 {[%clk 0:00:13]} 36. Nxe4 {[%clk 0:00:06]}  Nxe4 {[%clk 0:00:12]} 37. Kxe4 {[%clk 0:00:07]}  Kg6 {[%clk 0:00:12]} 38. Kd4 {[%clk 0:00:07]}  Kg5 {[%clk 0:00:13]} 39. Kxc4 {[%clk 0:00:08]}  Kh4 {[%clk 0:00:14]} 40. Kc5 {[%clk 0:00:08]}  Kxh3 {[%clk 0:00:15]} 41. Kb6 {[%clk 0:00:09]}  Kg2 {[%clk 0:00:16]} 42. Kxa6 {[%clk 0:00:10]}  Kxf2 {[%clk 0:00:16]} 43. Kb6 {[%clk 0:00:09]}  g5 {[%clk 0:00:17]} 44. a5 {[%clk 0:00:09]}  g4 {[%clk 0:00:18]} 45. a6 {[%clk 0:00:10]}  g3 {[%clk 0:00:19]} 46. a7 {[%clk 0:00:11]}  g2 {[%clk 0:00:20]} 47. a8=Q {[%clk 0:00:11]}  g1=Q {[%clk 0:00:21]} 48. Qf8+ {[%clk 0:00:11]}  Ke1+ {[%clk 0:00:21]} 49. Kb7 {[%clk 0:00:09]}  Qg2+ {[%clk 0:00:17]} 50. Kc7 {[%clk 0:00:09]}  Qc2+ {[%clk 0:00:16]} 51. Kd7 {[%clk 0:00:09]}  Qa4+ {[%clk 0:00:15]} 52. Ke7 {[%clk 0:00:10]}  Qb4+ {[%clk 0:00:14]} 53. Kf7 {[%clk 0:00:10]}  Qxf8+ {[%clk 0:00:15]} 54. Kxf8 {[%clk 0:00:11]} 1/2-1/2


[Site "https://www.chess.com"]

[Event "Titled Tuesday Blitz November 14 Early 2023"]
[White "Limontaite, Simona"]
[Black "LangesNasenhaar"]
[WhiteFideId "12802506"]
[WhiteElo "2245"]
[BlackElo "2435"]
[Result "0-1"]
[Round "3"]
[TimeControl "180+1"]
[Date "2023.11.14"]
[WhiteClock "0:00:00"]
[BlackClock "0:00:20"]
[Board "179"]

1. d4 {[%clk 0:03:00]}  d5 {[%clk 0:02:59]} 2. c4 {[%clk 0:03:00]}  e6 {[%clk 0:02:59]} 3. Nc3 {[%clk 0:03:00]}  c5 {[%clk 0:03:00]} 4. cxd5 {[%clk 0:03:00]}  cxd4 {[%clk 0:03:00]} 5. Qxd4 {[%clk 0:03:00]}  Nc6 {[%clk 0:03:01]} 6. Qa4 {[%clk 0:03:00]}  exd5 {[%clk 0:03:00]} 7. e3 {[%clk 0:03:00]}  Nf6 {[%clk 0:03:00]} 8. Nf3 {[%clk 0:03:01]}  Be7 {[%clk 0:02:58]} 9. Bd3 {[%clk 0:02:57]}  O-O {[%clk 0:02:58]} 10. O-O {[%clk 0:02:57]}  Qb6 {[%clk 0:02:58]} 11. Rd1 {[%clk 0:02:40]}  h6 {[%clk 0:02:55]} 12. Nd4 {[%clk 0:02:28]}  Nxd4 {[%clk 0:02:37]} 13. Qxd4 {[%clk 0:02:25]}  Qxd4 {[%clk 0:02:36]} 14. exd4 {[%clk 0:02:26]}  Bg4 {[%clk 0:02:31]} 15. f3 {[%clk 0:02:25]}  Be6 {[%clk 0:02:30]} 16. Bf4 {[%clk 0:02:14]}  Rfc8 {[%clk 0:02:29]} 17. Rac1 {[%clk 0:02:12]}  a6 {[%clk 0:02:19]} 18. Na4 {[%clk 0:01:53]}  Nd7 {[%clk 0:02:19]} 19. Bc7 {[%clk 0:00:54]}  Bf6 {[%clk 0:01:55]} 20. Bb1 {[%clk 0:00:54]}  b5 {[%clk 0:01:52]} 21. Nb6 {[%clk 0:00:52]}  Nxb6 {[%clk 0:01:52]} 22. Bxb6 {[%clk 0:00:53]}  Rxc1 {[%clk 0:01:25]} 23. Rxc1 {[%clk 0:00:54]}  Rc8 {[%clk 0:01:24]} 24. Rxc8+ {[%clk 0:00:47]}  Bxc8 {[%clk 0:01:25]} 25. Kf2 {[%clk 0:00:27]}  Kf8 {[%clk 0:01:24]} 26. Bc2 {[%clk 0:00:19]}  Ke7 {[%clk 0:01:18]} 27. a4 {[%clk 0:00:18]}  Bd7 {[%clk 0:01:16]} 28. Bc5+ {[%clk 0:00:14]}  Ke6 {[%clk 0:01:11]} 29. f4 {[%clk 0:00:11]}  g6 {[%clk 0:01:04]} 30. g4 {[%clk 0:00:10]}  Bh4+ {[%clk 0:00:47]} 31. Kf3 {[%clk 0:00:06]}  bxa4 {[%clk 0:00:42]} 32. f5+ {[%clk 0:00:01]}  Kf6 {[%clk 0:00:40]} 33. fxg6 {[%clk 0:00:01]}  fxg6 {[%clk 0:00:39]} 34. Bd3 {[%clk 0:00:01]}  Bb5 {[%clk 0:00:36]} 35. Bc2 {[%clk 0:00:01]}  Bg5 {[%clk 0:00:25]} 36. h3 {[%clk 0:00:01]}  Bc1 {[%clk 0:00:25]} 37. Ba3 {[%clk 0:00:00]}  h5 {[%clk 0:00:20]} 0-1


[Site "https://www.chess.com"]

[Event "Titled Tuesday Blitz November 14 Early 2023"]
[White "Perez Cruz, Adianet"]
[Black "Xie, Bryan"]
[WhiteFideId "3510115"]
[BlackFideId "30941296"]
[WhiteElo "2009"]
[BlackElo "2407"]
[Result "0-1"]
[Round "3"]
[TimeControl "180+1"]
[Date "2023.11.14"]
[WhiteClock "0:00:24"]
[BlackClock "0:00:51"]
[Board "181"]

1. d4 {[%clk 0:03:00]}  Nf6 {[%clk 0:02:54]} 2. Bg5 {[%clk 0:02:59]}  d5 {[%clk 0:02:53]} 3. e3 {[%clk 0:02:58]}  Nbd7 {[%clk 0:02:51]} 4. Nd2 {[%clk 0:02:57]}  e6 {[%clk 0:02:43]} 5. Ngf3 {[%clk 0:02:56]}  Be7 {[%clk 0:02:42]} 6. c3 {[%clk 0:02:48]}  c5 {[%clk 0:02:40]} 7. Bd3 {[%clk 0:02:44]}  h6 {[%clk 0:02:39]} 8. Bh4 {[%clk 0:02:44]}  O-O {[%clk 0:02:37]} 9. O-O {[%clk 0:02:44]}  b6 {[%clk 0:02:29]} 10. Re1 {[%clk 0:02:43]}  Bb7 {[%clk 0:02:26]} 11. Qe2 {[%clk 0:02:42]}  Ne4 {[%clk 0:02:19]} 12. Bxe7 {[%clk 0:02:41]}  Qxe7 {[%clk 0:02:09]} 13. h3 {[%clk 0:02:27]}  Ndf6 {[%clk 0:01:59]} 14. Ba6 {[%clk 0:02:24]}  Rac8 {[%clk 0:01:54]} 15. Bxb7 {[%clk 0:02:23]}  Qxb7 {[%clk 0:01:53]} 16. Ne5 {[%clk 0:02:23]}  Rfd8 {[%clk 0:01:47]} 17. Rad1 {[%clk 0:02:21]}  a5 {[%clk 0:01:42]} 18. a3 {[%clk 0:02:21]}  cxd4 {[%clk 0:01:39]} 19. exd4 {[%clk 0:02:20]}  b5 {[%clk 0:01:40]} 20. Nxe4 {[%clk 0:02:18]}  Nxe4 {[%clk 0:01:39]} 21. f3 {[%clk 0:02:16]}  Nd6 {[%clk 0:01:36]} 22. Rc1 {[%clk 0:01:56]}  b4 {[%clk 0:01:30]} 23. cxb4 {[%clk 0:01:57]}  axb4 {[%clk 0:01:31]} 24. a4 {[%clk 0:01:55]}  b3 {[%clk 0:01:25]} 25. Qd3 {[%clk 0:01:42]}  Qb4 {[%clk 0:01:22]} 26. Red1 {[%clk 0:01:30]}  Qxa4 {[%clk 0:01:14]} 27. Ra1 {[%clk 0:01:29]}  Qb4 {[%clk 0:01:11]} 28. Ra6 {[%clk 0:01:24]}  Nc4 {[%clk 0:01:08]} 29. Nxc4 {[%clk 0:01:12]}  dxc4 {[%clk 0:01:07]} 30. Qe3 {[%clk 0:00:45]}  c3 {[%clk 0:01:01]} 31. bxc3 {[%clk 0:00:41]}  Rxc3 {[%clk 0:01:02]} 32. Qd2 {[%clk 0:00:32]}  b2 {[%clk 0:00:55]} 33. Rb1 {[%clk 0:00:28]}  Rc1+ {[%clk 0:00:52]} 34. Rxc1 {[%clk 0:00:24]}  Qxd2 {[%clk 0:00:51]} 0-1


[Site "https://www.chess.com"]

[Event "Titled Tuesday Blitz November 14 Early 2023"]
[White "parintele_chess"]
[Black "GaiozNigalidze"]
[WhiteElo "2232"]
[BlackElo "2743"]
[Result "0-1"]
[Round "3"]
[TimeControl "180+1"]
[Date "2023.11.14"]
[WhiteClock "0:00:00"]
[BlackClock "0:01:48"]
[Board "182"]

1. d4 {[%clk 0:02:55]}  Nf6 {[%clk 0:02:59]} 2. Bf4 {[%clk 0:02:55]}  e6 {[%clk 0:03:00]} 3. Nf3 {[%clk 0:02:54]}  b5 {[%clk 0:03:00]} 4. e3 {[%clk 0:02:53]}  b4 {[%clk 0:03:00]} 5. Be2 {[%clk 0:02:47]}  Bb7 {[%clk 0:03:00]} 6. c3 {[%clk 0:02:48]}  a5 {[%clk 0:02:58]} 7. h3 {[%clk 0:02:47]}  Be7 {[%clk 0:02:58]} 8. Nbd2 {[%clk 0:02:47]}  O-O {[%clk 0:02:58]} 9. O-O {[%clk 0:02:46]}  Nc6 {[%clk 0:02:57]} 10. e4 {[%clk 0:02:39]}  d6 {[%clk 0:02:56]} 11. a3 {[%clk 0:02:28]}  bxc3 {[%clk 0:02:54]} 12. bxc3 {[%clk 0:02:28]}  Nd7 {[%clk 0:02:55]} 13. Rb1 {[%clk 0:02:24]}  Rb8 {[%clk 0:02:54]} 14. Qa4 {[%clk 0:02:19]}  Ba8 {[%clk 0:02:54]} 15. Rxb8 {[%clk 0:02:14]}  Qxb8 {[%clk 0:02:55]} 16. Rb1 {[%clk 0:02:14]}  Nb6 {[%clk 0:02:52]} 17. Qc2 {[%clk 0:02:09]}  Qe8 {[%clk 0:02:45]} 18. Bb5 {[%clk 0:01:27]}  Qc8 {[%clk 0:02:41]} 19. Bd3 {[%clk 0:01:21]}  h6 {[%clk 0:02:40]} 20. c4 {[%clk 0:01:16]}  Bf6 {[%clk 0:02:38]} 21. d5 {[%clk 0:01:06]}  Nd8 {[%clk 0:02:33]} 22. Be3 {[%clk 0:00:52]}  Nd7 {[%clk 0:02:31]} 23. Nd4 {[%clk 0:00:47]}  Nc5 {[%clk 0:02:28]} 24. Be2 {[%clk 0:00:39]}  a4 {[%clk 0:02:20]} 25. Bg4 {[%clk 0:00:35]}  Re8 {[%clk 0:02:12]} 26. f4 {[%clk 0:00:26]}  Qa6 {[%clk 0:02:04]} 27. Nb5 {[%clk 0:00:24]}  Qa5 {[%clk 0:02:01]} 28. Bxc5 {[%clk 0:00:23]}  dxc5 {[%clk 0:02:01]} 29. e5 {[%clk 0:00:23]}  Bh4 {[%clk 0:01:58]} 30. Nf3 {[%clk 0:00:22]}  Be7 {[%clk 0:01:56]} 31. dxe6 {[%clk 0:00:16]}  Nxe6 {[%clk 0:01:56]} 32. Bxe6 {[%clk 0:00:16]}  fxe6 {[%clk 0:01:56]} 33. Qg6 {[%clk 0:00:15]}  Qb6 {[%clk 0:01:55]} 34. Nc3 {[%clk 0:00:13]}  Qc6 {[%clk 0:01:55]} 35. Re1 {[%clk 0:00:03]}  Rf8 {[%clk 0:01:53]} 36. Ne4 {[%clk 0:00:02]}  Rxf4 {[%clk 0:01:52]} 37. Nf6+ {[%clk 0:00:02]}  Bxf6 {[%clk 0:01:52]} 38. exf6 {[%clk 0:00:02]}  Rxf6 {[%clk 0:01:52]} 39. Qg4 {[%clk 0:00:00]}  Qd6 {[%clk 0:01:48]} 0-1


[Site "https://www.chess.com"]